[Event "White Rook U14 Final 2019"]
[Site "Sochi"]
[Date "2019.06.06"]
[Round "2.11"]
[White "Simon, Leonard"]
[Black "Mugenov, Vadim"]
[Result "1/2-1/2"]
[ECO "B86"]
[WhiteElo "1383"]
[BlackElo "1329"]
[Annotator "NA RC"]
[PlyCount "104"]
[EventDate "2019.06.02"]
[EventCountry "RUS"]
[SourceTitle "playchess.com"]
[Source "ChessBase"]
[SourceQuality "1"]
[TimeControl "5400+30"]

1. e4 {[%emt 0:00:00]} c5 {[%emt 0:00:00]} 2. Nf3 {[%emt 0:00:00]} d6 {[%emt 0:00:00]} 3. d4 {[%emt 0:00:00]} cxd4 {[%emt 0:00:00]} 4. Nxd4 {[%emt 0:00:00]} Nf6 {[%emt 0:00:00]} 5. Nc3 {[%emt 0:00:00]} a6 {[%emt 0:00:00]} 6. Bc4 {[%emt 0:00:20]} e6 {[%emt 0:00:06]} 7. Bb3 {[%emt 0:00:09]} Be7 {[%emt 0:00:08]} 8. O-O {[%emt 0:01:49]} O-O {[%emt 0:00:36]} 9. Re1 {[%emt 0:01:02]} Qc7 {[%emt 0:00:54]} 10. h3 {[%emt 0:02:40]} b5 {[%emt 0:00:46]} 11. a4 {[%emt 0:00:11]} bxa4 {[%emt 0:01:37]} 12. Bxa4 {[%emt 0:00:59]} Bb7 {[%emt 0:00:52]} 13. Bb3 {[%emt 0:03:05]} Nbd7 {[%emt 0:04:03]} 14. f3 {[%emt 0:10:48]} Nc5 {[%emt 0:00:24]} 15. Ba2 {[%emt 0:00:00]} Rfd8 {[%emt 0:00:32]} 16. Be3 {[%emt 0:01:09]} d5 {[%emt 0:02:28]} 17. exd5 {[%emt 0:01:16]} Nxd5 {[%emt 0:00:00]} 18. Nxd5 {[%emt 0:00:24]} Bxd5 {[%emt 0:00:00]} 19. Qe2 {[%emt 0:01:29]} Bxa2 {[%emt 0:00:34]} 20. Rxa2 {[%emt 0:00:00]} Bf6 {[%emt 0:01:58]} 21. c3 {[%emt 0:01:15]} e5 {[%emt 0:13:10]} 22. Nc2 {[%emt 0:02:28]} Bh4 {[%emt 0:06:50]} 23. Rb1 {[%emt 0:03:28]} Re8 {[%emt 0:08:56]} 24. Qc4 {[%emt 0:00:39]} Be7 {[%emt 0:01:46]} 25. Nb4 {[%emt 0:01:33]} Ne6 {[%emt 0:03:10]} 26. Qxc7 {[%emt 0:04:33]} Nxc7 {[%emt 0:00:08]} 27. Nc6 {[%emt 0:01:04]} Nd5 {[%emt 0:04:49]} 28. Bf2 {[%emt 0:00:41]} Bf6 {[%emt 0:01:51]} 29. Rba1 {[%emt 0:00:54]} Rec8 {[%emt 0:11:07]} 30. Rxa6 {[%emt 0:00:52]} Rxa6 {[%emt 0:00:07]} 31. Rxa6 {[%emt 0:00:13]} Nf4 {[%emt 0:01:53]} 32. Nb4 {[%emt 0:00:59]} h6 {[%emt 0:00:55]} 33. Kf1 {[%emt 0:02:07]} Rd8 {[%emt 0:01:40]} 34. Bg3 {[%emt 0:02:56]} Rd1+ {[%emt 0:00:58]} 35. Kf2 {[%emt 0:04:49]} Rd2+ {[%emt 0:00:07]} 36. Ke1 {[%emt 0:00:47]} Rxb2 {[%emt 0:00:15]} 37. Bxf4 {[%emt 0:00:30]} exf4 {[%emt 0:00:28]} 38. Nd5 {[%emt 0:00:17]} Bh4+ {[%emt 0:01:11]} 39. Kf1 {[%emt 0:00:54]} Bg3 {[%emt 0:01:25]} 40. c4 {[%emt 0:00:00]} Rc2 {[%emt 0:03:07]} 41. Rc6 {[%emt 0:00:14]} Bf2 {[%emt 0:00:49]} 42. Nxf4 {[%emt 0:00:30]} Bg3 {[%emt 0:06:16]} 43. Ne2 {[%emt 0:02:02]} Bh4 {[%emt 0:00:44]} 44. g3 {[%emt 0:00:39]} Bf6 {[%emt 0:00:00]} 45. Rc8+ {[%emt 0:02:17]} Kh7 {[%emt 0:00:22]} 46. c5 {[%emt 0:00:29]} Be7 {[%emt 0:01:48]} 47. c6 {[%emt 0:00:38]} Bd6 {[%emt 0:00:41]} 48. f4 {[%emt 0:01:18]} g5 {[%emt 0:00:17]} 49. fxg5 {[%emt 0:01:42]} hxg5 {[%emt 0:00:14]} 50. g4 {[%emt 0:00:19]} Rc4 {[%emt 0:01:53]} 51. Kf2 {[%emt 0:00:29]} Kg7 {[%emt 0:01:27]} 52. Kf3 {[%emt 0:00:59]} Kf6 {[%emt 0:01:45]} 1/2-1/2

[Event "White Rook U14 Final 2019"]
[Site "Sochi"]
[Date "2019.06.06"]
[Round "2.12"]
[White "Mkrtchian, Anait"]
[Black "Sekova, Olivia"]
[Result "1-0"]
[ECO "B34"]
[WhiteElo "1165"]
[BlackElo "1226"]
[Annotator "NA RC"]
[PlyCount "59"]
[EventDate "2019.06.02"]
[EventCountry "RUS"]
[SourceTitle "playchess.com"]
[Source "ChessBase"]
[SourceQuality "1"]
[TimeControl "5400+30"]

1. e4 {[%emt 0:00:00]} c5 {[%emt 0:00:00]} 2. Nf3 {[%emt 0:00:00]} Nc6 {[%emt 0:00:03]} 3. d4 {[%emt 0:00:00]} cxd4 {[%emt 0:00:00]} 4. Nxd4 {[%emt 0:00:00]} g6 {[%emt 0:00:57]} 5. Be3 {[%emt 0:00:12]} Bg7 {[%emt 0:01:37]} 6. c3 {[%emt 0:00:32]} Nf6 {[%emt 0:00:04]} 7. f3 {[%emt 0:00:12]} O-O {[%emt 0:01:48]} 8. Bc4 {[%emt 0:00:44]} Ne5 {[%emt 0:02:00]} 9. Bb3 {[%emt 0:00:00]} d6 {[%emt 0:01:43]} 10. g4 {[%emt 0:00:38]} Nc6 {[%emt 0:07:05]} 11. h4 {[%emt 0:01:06]} Nxd4 {[%emt 0:01:04]} 12. cxd4 {[%emt 0:00:19]} Qa5+ {[%emt 0:02:32]} 13. Nc3 {[%emt 0:00:34]} Rd8 {[%emt 0:01:10]} 14. Bd2 {[%emt 0:00:50]} Qb6 {[%emt 0:01:32]} 15. Ne2 {[%emt 0:01:10]} Bd7 {[%emt 0:02:08]} 16. h5 {[%emt 0:00:39]} e5 {[%emt 0:06:22]} 17. Be3 {[%emt 0:01:45]} exd4 {[%emt 0:00:52]} 18. Bxd4 {[%emt 0:00:21]} Qa5+ {[%emt 0:01:41]} 19. Bc3 {[%emt 0:02:02]} Qg5 {[%emt 0:00:41]} 20. Bd2 {[%emt 0:01:09]} Qe5 {[%emt 0:00:45]} 21. hxg6 {[%emt 0:02:42]} hxg6 {[%emt 0:00:11]} 22. Bc3 {[%emt 0:00:32]} Qc5 {[%emt 0:01:20]} 23. Qd2 {[%emt 0:02:43]} Bxg4 {[%emt 0:07:27]} 24. Bxf6 {[%emt 0:03:30]} Bxf3 {[%emt 0:00:13]} 25. Rh3 {[%emt 0:03:23]} Bxe2 {[%emt 0:01:59]} 26. Kxe2 {[%emt 0:00:17]} Qb5+ {[%emt 0:01:55]} 27. Ke1 {[%emt 0:01:29]} Re8 {[%emt 0:04:35]} 28. Qg2 {[%emt 0:15:25]} Bxf6 {[%emt 0:03:55]} 29. Qxg6+ {[%emt 0:00:00]} Bg7 {[%emt 0:01:24]} 30. Qxf7# {[%emt 0:00:27]} 1-0

[Event "White Rook U14 Final 2019"]
[Site "Sochi"]
[Date "2019.06.06"]
[Round "2.13"]
[White "Nosachev, Daniil"]
[Black "Andrijashkin, Deniss"]
[Result "1-0"]
[ECO "C60"]
[WhiteElo "1719"]
[BlackElo "1891"]
[Annotator "NA RC"]
[PlyCount "53"]
[EventDate "2019.06.02"]
[EventCountry "RUS"]
[SourceTitle "playchess.com"]
[Source "ChessBase"]
[SourceQuality "1"]
[TimeControl "5400+30"]

1. e4 {[%emt 0:00:00]} e5 {[%emt 0:00:00]} 2. Nf3 {[%emt 0:00:00]} Nc6 {[%emt 0:00:00]} 3. Bb5 {[%emt 0:00:00]} a6 {[%emt 0:00:29]} 4. Ba4 {[%emt 0:00:00]} b5 {[%emt 0:00:06]} 5. Bb3 {[%emt 0:00:00]} g6 {[%emt 0:00:34]} 6. O-O {[%emt 0:02:35]} Bg7 {[%emt 0:00:05]} 7. c3 {[%emt 0:00:00]} Nge7 {[%emt 0:00:03]} 8. d4 {[%emt 0:00:00]} exd4 {[%emt 0:05:13]} 9. cxd4 {[%emt 0:00:04]} d6 {[%emt 0:00:09]} 10. h3 {[%emt 0:04:59]} O-O {[%emt 0:00:16]} 11. Re1 {[%emt 0:02:05]} Na5 {[%emt 0:07:36]} 12. Bc2 {[%emt 0:02:13]} c5 {[%emt 0:00:17]} 13. Nc3 {[%emt 0:10:19]} Nec6 {[%emt 0:26:19]} 14. Bg5 {[%emt 0:09:31]} Qb6 {[%emt 0:00:52]} 15. Nd5 {[%emt 0:04:29]} Qa7 {[%emt 0:00:21]} 16. dxc5 {[%emt 0:08:01]} dxc5 {[%emt 0:00:00]} 17. Qc1 {[%emt 0:12:56]} Be6 {[%emt 0:08:13]} 18. Nf6+ {[%emt 0:05:34]} Kh8 {[%emt 0:00:40]} 19. Qf4 {[%emt 0:01:11]} Nc4 {[%emt 0:27:46]} 20. Qh4 {[%emt 0:00:41]} h5 {[%emt 0:00:11]} 21. g4 {[%emt 0:02:06]} N6e5 {[%emt 0:00:11]} 22. Nxe5 {[%emt 0:03:15]} Nxe5 {[%emt 0:00:04]} 23. Re3 {[%emt 0:00:39]} Nd7 {[%emt 0:00:14]} 24. gxh5 {[%emt 0:03:11]} Nxf6 {[%emt 0:00:35]} 25. Bxf6 {[%emt 0:00:52]} Bxf6 {[%emt 0:04:36]} 26. Qxf6+ {[%emt 0:00:05]} Kh7 {[%emt 0:00:33]} 27. hxg6+ {[%emt 0:00:40]} 1-0

[Event "White Rook U14 Final 2019"]
[Site "Sochi"]
[Date "2019.06.06"]
[Round "2.14"]
[White "Sadekov, Maksim"]
[Black "Babeshko, Vitaliy"]
[Result "1-0"]
[ECO "D00"]
[WhiteElo "1541"]
[BlackElo "1331"]
[Annotator "NA RC"]
[PlyCount "77"]
[EventDate "2019.06.02"]
[EventCountry "RUS"]
[SourceTitle "playchess.com"]
[Source "ChessBase"]
[SourceQuality "1"]
[TimeControl "5400+30"]

1. d4 {[%emt 0:00:00]} d5 {[%emt 0:00:00]} 2. Bf4 {[%emt 0:00:00]} Bf5 {[%emt 0:00:00]} 3. e3 {[%emt 0:00:00]} Nf6 {[%emt 0:00:01]} 4. c4 {[%emt 0:00:00]} e6 {[%emt 0:00:44]} 5. Nc3 {[%emt 0:00:00]} Bd6 {[%emt 0:01:47]} 6. Bxd6 {[%emt 0:01:59]} Qxd6 {[%emt 0:01:04]} 7. Qb3 {[%emt 0:06:21]} b6 {[%emt 0:06:12]} 8. Nf3 {[%emt 0:05:47]} Nbd7 {[%emt 0:01:05]} 9. Rc1 {[%emt 0:03:17]} O-O {[%emt 0:05:28]} 10. cxd5 {[%emt 0:01:46]} Nxd5 {[%emt 0:00:48]} 11. Nxd5 {[%emt 0:00:19]} exd5 {[%emt 0:00:03]} 12. Bb5 {[%emt 0:00:26]} Rac8 {[%emt 0:04:52]} 13. Rc6 {[%emt 0:00:04]} Qe7 {[%emt 0:01:39]} 14. O-O {[%emt 0:01:29]} Nb8 {[%emt 0:08:53]} 15. Rcc1 {[%emt 0:01:07]} c6 {[%emt 0:00:36]} 16. Bd3 {[%emt 0:00:37]} Bxd3 {[%emt 0:02:15]} 17. Qxd3 {[%emt 0:00:00]} Rfd8 {[%emt 0:02:26]} 18. Rfd1 {[%emt 0:01:57]} c5 {[%emt 0:02:38]} 19. dxc5 {[%emt 0:00:18]} bxc5 {[%emt 0:00:15]} 20. Qa3 {[%emt 0:01:29]} Rc6 {[%emt 0:04:03]} 21. h3 {[%emt 0:01:17]} Qc7 {[%emt 0:05:35]} 22. Rc2 {[%emt 0:03:41]} Na6 {[%emt 0:02:32]} 23. Rcd2 {[%emt 0:00:46]} Rcd6 {[%emt 0:09:05]} 24. Rc1 {[%emt 0:02:39]} Rc6 {[%emt 0:01:01]} 25. Qa4 {[%emt 0:02:38]} c4 {[%emt 0:04:09]} 26. Rcd1 {[%emt 0:01:41]} Nc5 {[%emt 0:01:17]} 27. Qxc4 {[%emt 0:02:27]} Ne6 {[%emt 0:02:57]} 28. Qe2 {[%emt 0:00:45]} Rcd6 {[%emt 0:03:40]} 29. Nd4 {[%emt 0:00:23]} Nxd4 {[%emt 0:00:41]} 30. Rxd4 {[%emt 0:00:00]} f6 {[%emt 0:01:10]} 31. Qd2 {[%emt 0:00:00]} f5 {[%emt 0:00:41]} 32. Qd3 {[%emt 0:00:26]} g6 {[%emt 0:01:08]} 33. Qb3 {[%emt 0:02:02]} Rb6 {[%emt 0:01:28]} 34. Rxd5 {[%emt 0:02:01]} Rxb3 {[%emt 0:00:00]} 35. Rxd8+ {[%emt 0:00:05]} Kf7 {[%emt 0:00:32]} 36. R1d7+ {[%emt 0:00:07]} Qxd7 {[%emt 0:00:41]} 37. Rxd7+ {[%emt 0:00:38]} Ke6 {[%emt 0:00:00]} 38. Rxh7 {[%emt 0:00:07]} Rxb2 {[%emt 0:00:00]} 39. Rxa7 {[%emt 0:00:04]} 1-0

[Event "White Rook U14 Final 2019"]
[Site "Sochi"]
[Date "2019.06.06"]
[Round "2.15"]
[White "Eperin, Andrey"]
[Black "Lazojev, Mark"]
[Result "1-0"]
[ECO "C55"]
[WhiteElo "1288"]
[BlackElo "1179"]
[Annotator "NA RC"]
[PlyCount "93"]
[EventDate "2019.06.02"]
[EventCountry "RUS"]
[SourceTitle "playchess.com"]
[Source "ChessBase"]
[SourceQuality "1"]
[TimeControl "5400+30"]

1. e4 {[%emt 0:00:00]} e5 {[%emt 0:00:05]} 2. Nf3 {[%emt 0:00:05]} Nc6 {[%emt 0:00:03]} 3. d4 {[%emt 0:00:08]} exd4 {[%emt 0:00:07]} 4. Bc4 {[%emt 0:00:03]} Be7 {[%emt 0:06:26]} 5. Nxd4 {[%emt 0:00:09]} Nf6 {[%emt 0:00:36]} 6. Nc3 {[%emt 0:00:28]} Bb4 {[%emt 0:01:35]} 7. Nxc6 {[%emt 0:04:10]} Bxc3+ {[%emt 0:03:39]} 8. bxc3 {[%emt 0:00:13]} bxc6 {[%emt 0:03:23]} 9. e5 {[%emt 0:01:16]} Ng8 {[%emt 0:07:32]} 10. O-O {[%emt 0:00:47]} Ne7 {[%emt 0:02:16]} 11. Bg5 {[%emt 0:00:34]} O-O {[%emt 0:01:20]} 12. f4 {[%emt 0:00:51]} d5 {[%emt 0:04:58]} 13. exd6 {[%emt 0:00:14]} cxd6 {[%emt 0:06:19]} 14. Kh1 {[%emt 0:09:03]} Re8 {[%emt 0:12:00]} 15. Re1 {[%emt 0:00:35]} d5 {[%emt 0:01:52]} 16. Bd3 {[%emt 0:00:12]} f6 {[%emt 0:03:52]} 17. Bh4 {[%emt 0:09:03]} Nf5 {[%emt 0:03:17]} 18. Bf2 {[%emt 0:07:59]} Nd6 {[%emt 0:04:02]} 19. Bc5 {[%emt 0:08:52]} Nb7 {[%emt 0:05:38]} 20. Ba3 {[%emt 0:01:44]} Rxe1+ {[%emt 0:04:12]} 21. Qxe1 {[%emt 0:00:10]} Qd7 {[%emt 0:07:30]} 22. Qh4 {[%emt 0:01:20]} h6 {[%emt 0:02:14]} 23. Re1 {[%emt 0:00:47]} c5 {[%emt 0:01:41]} 24. Bg6 {[%emt 0:00:10]} Nd6 {[%emt 0:01:44]} 25. Bxc5 {[%emt 0:00:34]} Ba6 {[%emt 0:00:38]} 26. Bxd6 {[%emt 0:09:34]} Qxd6 {[%emt 0:00:01]} 27. f5 {[%emt 0:00:49]} Rb8 {[%emt 0:01:07]} 28. Qa4 {[%emt 0:01:24]} Qe5 {[%emt 0:01:39]} 29. Rg1 {[%emt 0:03:16]} Qd6 {[%emt 0:01:05]} 30. Qd4 {[%emt 0:00:40]} Qd7 {[%emt 0:00:50]} 31. h3 {[%emt 0:00:54]} Bc4 {[%emt 0:00:21]} 32. Ra1 {[%emt 0:08:47]} Rb2 {[%emt 0:00:26]} 33. Qf4 {[%emt 0:00:58]} Qc8 {[%emt 0:00:56]} 34. Re1 {[%emt 0:02:13]} Bb5 {[%emt 0:00:23]} 35. Qd4 {[%emt 0:00:17]} Bc6 {[%emt 0:00:38]} 36. Qxa7 {[%emt 0:00:30]} Rb7 {[%emt 0:00:21]} 37. Qa3 {[%emt 0:01:28]} Qb8 {[%emt 0:00:47]} 38. Qc5 {[%emt 0:01:40]} Qc7 {[%emt 0:01:25]} 39. Qe3 {[%emt 0:01:29]} Rb8 {[%emt 0:01:00]} 40. Kg1 {[%emt 0:05:21]} Qb7 {[%emt 0:00:53]} 41. Qe7 {[%emt 0:01:09]} Qb6+ {[%emt 0:00:32]} 42. Kh2 {[%emt 0:00:49]} Qf2 {[%emt 0:00:51]} 43. Qe3 {[%emt 0:00:33]} Qxc2 {[%emt 0:02:00]} 44. Qe6+ {[%emt 0:00:10]} Kh8 {[%emt 0:00:28]} 45. Qxc6 {[%emt 0:00:11]} Qf2 {[%emt 0:00:29]} 46. Re8+ {[%emt 0:00:13]} Rxe8 {[%emt 0:00:23]} 47. Qxe8# {[%emt 0:00:02]} 1-0

[Event "White Rook U14 Final 2019"]
[Site "Sochi"]
[Date "2019.06.06"]
[Round "2.16"]
[White "Poluektova, Arina"]
[Black "Noyanzina, Sofia"]
[Result "0-1"]
[ECO "B22"]
[WhiteElo "1313"]
[BlackElo "1318"]
[Annotator "NA RC"]
[PlyCount "78"]
[EventDate "2019.06.02"]
[EventCountry "RUS"]
[SourceTitle "playchess.com"]
[Source "ChessBase"]
[SourceQuality "1"]
[TimeControl "5400+30"]

1. e4 {[%emt 0:00:00]} c5 {[%emt 0:00:00]} 2. Nf3 {[%emt 0:00:00]} Nc6 {[%emt 0:00:00]} 3. c3 {[%emt 0:00:00]} d5 {[%emt 0:00:00]} 4. exd5 {[%emt 0:01:00]} Qxd5 {[%emt 0:00:00]} 5. d4 {[%emt 0:00:45]} Nf6 {[%emt 0:04:43]} 6. Be3 {[%emt 0:01:58]} cxd4 {[%emt 0:01:13]} 7. Nxd4 {[%emt 0:00:00]} Nxd4 {[%emt 0:01:53]} 8. Qxd4 {[%emt 0:01:57]} e5 {[%emt 0:01:43]} 9. Qxd5 {[%emt 0:00:58]} Nxd5 {[%emt 0:00:08]} 10. Bb5+ {[%emt 0:03:48]} Bd7 {[%emt 0:01:12]} 11. Bxd7+ {[%emt 0:01:21]} Kxd7 {[%emt 0:00:00]} 12. Bd2 {[%emt 0:08:04]} Bc5 {[%emt 0:01:36]} 13. O-O {[%emt 0:01:27]} Rhe8 {[%emt 0:01:00]} 14. c4 {[%emt 0:01:34]} Nb6 {[%emt 0:13:18]} 15. b3 {[%emt 0:01:51]} Kc6 {[%emt 0:02:52]} 16. Re1 {[%emt 0:02:56]} Rad8 {[%emt 0:01:43]} 17. Bc3 {[%emt 0:03:05]} Rd3 {[%emt 0:02:45]} 18. b4 {[%emt 0:06:16]} Na4 {[%emt 0:03:42]} 19. b5+ {[%emt 0:03:06]} Kd7 {[%emt 0:02:57]} 20. Rc1 {[%emt 0:03:41]} Nxc3 {[%emt 0:00:13]} 21. Nxc3 {[%emt 0:00:20]} Bd4 {[%emt 0:00:55]} 22. Ne4 {[%emt 0:03:05]} Bxa1 {[%emt 0:00:12]} 23. Nc5+ {[%emt 0:00:17]} Kc7 {[%emt 0:00:06]} 24. Nxd3 {[%emt 0:00:26]} Rd8 {[%emt 0:00:46]} 25. Nb4 {[%emt 0:04:14]} Bb2 {[%emt 0:01:46]} 26. Rb1 {[%emt 0:00:11]} Rd2 {[%emt 0:02:01]} 27. g3 {[%emt 0:01:01]} Bd4 {[%emt 0:00:54]} 28. Rf1 {[%emt 0:01:34]} Bc5 {[%emt 0:00:24]} 29. Nd5+ {[%emt 0:00:19]} Kd6 {[%emt 0:00:08]} 30. Nc3 {[%emt 0:02:11]} f5 {[%emt 0:00:32]} 31. Kg2 {[%emt 0:15:22]} Bd4 {[%emt 0:01:16]} 32. Nd5 {[%emt 0:04:18]} Rxa2 {[%emt 0:01:11]} 33. Nb4 {[%emt 0:05:20]} Ra4 {[%emt 0:01:59]} 34. Rb1 {[%emt 0:01:00]} Kc5 {[%emt 0:01:51]} 35. Nd3+ {[%emt 0:06:14]} Kxc4 {[%emt 0:00:00]} 36. Ne1 {[%emt 0:06:19]} Ra1 {[%emt 0:01:32]} 37. Rxa1 {[%emt 0:02:23]} Bxa1 {[%emt 0:00:05]} 38. Nf3 {[%emt 0:01:59]} Kxb5 {[%emt 0:00:33]} 39. Kf1 {[%emt 0:00:11]} a5 {[%emt 0:00:27]} 0-1

[Event "White Rook U14 Final 2019"]
[Site "Sochi"]
[Date "2019.06.06"]
[Round "2.17"]
[White "Ogorodnikov, Nikolai"]
[Black "Voloshkin, Daniil"]
[Result "1/2-1/2"]
[ECO "A34"]
[WhiteElo "1803"]
[BlackElo "1557"]
[Annotator "NA RC"]
[PlyCount "56"]
[EventDate "2019.06.02"]
[EventCountry "RUS"]
[SourceTitle "playchess.com"]
[Source "ChessBase"]
[SourceQuality "1"]
[TimeControl "5400+30"]

1. c4 {[%emt 0:00:00]} c5 {[%emt 0:00:00]} 2. Nc3 {[%emt 0:00:00]} Nf6 {[%emt 0:00:00]} 3. g3 {[%emt 0:00:00]} d5 {[%emt 0:00:00]} 4. cxd5 {[%emt 0:00:00]} Nxd5 {[%emt 0:00:22]} 5. Bg2 {[%emt 0:00:00]} Nc7 {[%emt 0:00:00]} 6. Nf3 {[%emt 0:00:00]} Nc6 {[%emt 0:00:20]} 7. d3 {[%emt 0:00:20]} e5 {[%emt 0:01:48]} 8. Be3 {[%emt 0:00:49]} f6 {[%emt 0:11:31]} 9. Nd2 {[%emt 0:02:47]} Nd4 {[%emt 0:17:33]} 10. Nc4 {[%emt 0:03:07]} Be7 {[%emt 0:18:15]} 11. Rc1 {[%emt 0:03:38]} O-O {[%emt 0:02:04]} 12. O-O {[%emt 0:02:31]} Rb8 {[%emt 0:09:05]} 13. Bxd4 {[%emt 0:01:12]} cxd4 {[%emt 0:01:04]} 14. Nb1 {[%emt 0:02:24]} Be6 {[%emt 0:02:31]} 15. f4 {[%emt 0:01:07]} Bd6 {[%emt 0:24:10]} 16. Nxd6 {[%emt 0:03:14]} Qxd6 {[%emt 0:00:00]} 17. Nd2 {[%emt 0:00:56]} Nb5 {[%emt 0:04:58]} 18. Nc4 {[%emt 0:00:08]} Bxc4 {[%emt 0:00:41]} 19. Rxc4 {[%emt 0:00:38]} Qd7 {[%emt 0:02:15]} 20. Qb3 {[%emt 0:00:28]} Kh8 {[%emt 0:00:00]} 21. Rc5 {[%emt 0:03:29]} Nc7 {[%emt 0:00:46]} 22. Rfc1 {[%emt 0:00:45]} Na6 {[%emt 0:00:43]} 23. R5c2 {[%emt 0:01:52]} exf4 {[%emt 0:01:33]} 24. gxf4 {[%emt 0:00:04]} Qg4 {[%emt 0:00:34]} 25. Rf1 {[%emt 0:03:01]} Rfe8 {[%emt 0:00:28]} 26. Kh1 {[%emt 0:02:22]} Qd7 {[%emt 0:00:58]} 27. Be4 {[%emt 0:07:48]} f5 {[%emt 0:00:20]} 28. Bg2 {[%emt 0:06:12]} Nc7 {[%emt 0:00:37]} 1/2-1/2

[Event "White Rook U14 Final 2019"]
[Site "Sochi"]
[Date "2019.06.06"]
[Round "2.18"]
[White "Vorzhevitin, Dmitriy"]
[Black "Cherniaev, Danil"]
[Result "0-1"]
[ECO "B19"]
[WhiteElo "1346"]
[BlackElo "1557"]
[Annotator "NA RC"]
[PlyCount "114"]
[EventDate "2019.06.02"]
[EventCountry "RUS"]
[SourceTitle "playchess.com"]
[Source "ChessBase"]
[SourceQuality "1"]
[TimeControl "5400+30"]

1. e4 {[%emt 0:00:00]} c6 {[%emt 0:00:00]} 2. d4 {[%emt 0:00:00]} d5 {[%emt 0:00:00]} 3. Nc3 {[%emt 0:01:11]} dxe4 {[%emt 0:00:00]} 4. Nxe4 {[%emt 0:00:40]} Bf5 {[%emt 0:00:00]} 5. Ng3 {[%emt 0:00:46]} Bg6 {[%emt 0:00:00]} 6. h4 {[%emt 0:00:56]} h6 {[%emt 0:00:00]} 7. h5 {[%emt 0:01:40]} Bh7 {[%emt 0:00:02]} 8. Nf3 {[%emt 0:00:35]} Nd7 {[%emt 0:00:00]} 9. Bd3 {[%emt 0:01:24]} Bxd3 {[%emt 0:00:00]} 10. Qxd3 {[%emt 0:01:08]} e6 {[%emt 0:00:43]} 11. Bd2 {[%emt 0:00:08]} Qc7 {[%emt 0:00:05]} 12. O-O-O {[%emt 0:02:16]} Ngf6 {[%emt 0:00:37]} 13. Ne4 {[%emt 0:00:29]} O-O-O {[%emt 0:00:00]} 14. Kb1 {[%emt 0:03:47]} Be7 {[%emt 0:00:00]} 15. c4 {[%emt 0:04:12]} c5 {[%emt 0:02:39]} 16. Bc3 {[%emt 0:07:03]} cxd4 {[%emt 0:04:44]} 17. Bxd4 {[%emt 0:18:04]} Nc5 {[%emt 0:03:52]} 18. Nxc5 {[%emt 0:01:20]} Bxc5 {[%emt 0:00:37]} 19. Qe2 {[%emt 0:02:56]} Bxd4 {[%emt 0:00:05]} 20. Rxd4 {[%emt 0:03:23]} Rxd4 {[%emt 0:00:27]} 21. Nxd4 {[%emt 0:00:39]} a6 {[%emt 0:02:35]} 22. c5 {[%emt 0:12:15]} Rd8 {[%emt 0:02:04]} 23. Nf3 {[%emt 0:02:31]} Rd5 {[%emt 0:04:37]} 24. b4 {[%emt 0:04:02]} Qf4 {[%emt 0:08:46]} 25. Rh4 {[%emt 0:08:28]} Qf5+ {[%emt 0:04:52]} 26. Ka1 {[%emt 0:00:08]} Nxh5 {[%emt 0:12:41]} 27. g3 {[%emt 0:05:48]} Nf6 {[%emt 0:03:19]} 28. Rf4 {[%emt 0:01:55]} Qh5 {[%emt 0:02:04]} 29. Rh4 {[%emt 0:00:55]} Qg6 {[%emt 0:02:04]} 30. Ne5 {[%emt 0:00:00]} Qg5 {[%emt 0:00:21]} 31. f4 {[%emt 0:06:20]} Qxg3 {[%emt 0:00:56]} 32. Rh1 {[%emt 0:03:12]} Qxf4 {[%emt 0:00:36]} 33. Nxf7 {[%emt 0:02:01]} Qd4+ {[%emt 0:01:53]} 34. Kb1 {[%emt 0:01:36]} Qxb4+ {[%emt 0:00:00]} 35. Ka1 {[%emt 0:00:02]} Qd4+ {[%emt 0:00:48]} 36. Kb1 {[%emt 0:00:06]} Qe4+ {[%emt 0:00:10]} 37. Qxe4 {[%emt 0:00:00]} Nxe4 {[%emt 0:00:00]} 38. Rg1 {[%emt 0:00:39]} g5 {[%emt 0:01:00]} 39. Nxh6 {[%emt 0:00:00]} Nxc5 {[%emt 0:00:13]} 40. Nf7 {[%emt 0:00:29]} Ne4 {[%emt 0:01:04]} 41. Rg4 {[%emt 0:00:24]} Nc3+ {[%emt 0:01:11]} 42. Kb2 {[%emt 0:00:37]} Nd1+ {[%emt 0:00:17]} 43. Kc1 {[%emt 0:00:24]} Ne3 {[%emt 0:01:40]} 44. Rxg5 {[%emt 0:00:58]} Rxg5 {[%emt 0:00:00]} 45. Nxg5 {[%emt 0:00:00]} Kd7 {[%emt 0:00:08]} 46. Ne4 {[%emt 0:00:14]} Kc6 {[%emt 0:01:03]} 47. Kd2 {[%emt 0:00:11]} Nc4+ {[%emt 0:00:14]} 48. Kc3 {[%emt 0:00:20]} Nd6 {[%emt 0:00:33]} 49. Nf6 {[%emt 0:01:07]} Nf5 {[%emt 0:00:16]} 50. Ne4 {[%emt 0:01:09]} a5 {[%emt 0:02:06]} 51. a4 {[%emt 0:00:46]} b6 {[%emt 0:01:40]} 52. Kd3 {[%emt 0:02:04]} Nd6 {[%emt 0:00:13]} 53. Nf6 {[%emt 0:01:08]} Nb7 {[%emt 0:00:19]} 54. Ng4 {[%emt 0:01:31]} Nc5+ {[%emt 0:00:00]} 55. Kc4 {[%emt 0:00:40]} Nxa4 {[%emt 0:01:27]} 56. Ne5+ {[%emt 0:00:05]} Kd6 {[%emt 0:00:12]} 57. Nf7+ {[%emt 0:00:05]} Kc7 {[%emt 0:00:24]} 0-1